fUSD/lending_fUSD_20250929
["ID","MTS","AMOUNT","RATE_DAILY","PERIOD"]
[388449940,1759174240918,-151.0,0.00018299,2]
[388449942,1759174240929,-151.0,0.00018299,2]
[388449944,1759174240940,-262.861329,0.00018299,2]
[388449947,1759174240951,-151.0,0.00018299,2]
[388449949,1759174240962,-151.0,0.00018299,2]
[388449951,1759174240972,-251.912171,0.00018299,2]
[388449953,1759174240983,-194.907851,0.00018299,2]
[388449955,1759174240993,-151.0,0.00018299,2]
[388449957,1759174241005,-151.0,0.00018299,2]
[388449959,1759174241015,-151.0,0.00018299,2]
[388449962,1759174241027,-151.0,0.00018299,2]
[388449964,1759174241037,-151.0,0.00018299,2]
[388449966,1759174241048,-631.403901,0.00018299,2]
[388449968,1759174241058,-631.403901,0.00018299,2]
[388449970,1759174241069,-631.403901,0.00018299,2]
[388449973,1759174241079,-5708.45057584,0.00018299,2]
[388450147,1759174242587,-178.84605,0.00018298,2]
[388450150,1759174242598,-306.952924,0.00018298,2]
[388450152,1759174242609,-151.0,0.00018298,2]
[388450154,1759174242620,-154.282276,0.00018298,2]
[388450157,1759174242631,-306.952924,0.00018298,2]
[388450159,1759174242642,-154.282276,0.00018298,2]
[388450161,1759174242652,-438.91307371,0.00018299,2]
[388450163,1759174242666,-1006.79461145,0.00018299,2]
[388450166,1759174242677,-7154.158261,0.00018299,2]
[388450168,1759174242688,-2838.23240348,0.00018299,2]
[388450170,1759174242701,-3435.2568,0.00018299,2]
[388450187,1759174242848,-880.66905752,0.00018299,2]
[388450190,1759174242860,-7154.158261,0.00018299,2]
[388450192,1759174242871,-151.0,0.00018299,2]
[388450194,1759174242883,-151.0,0.00018299,2]
[388450196,1759174242894,-151.0,0.00018299,2]
[388450198,1759174242905,-151.0,0.00018299,2]
[388450201,1759174242917,-154.282276,0.00018299,2]
[388450203,1759174242929,-151.0,0.00018299,2]
[388450205,1759174242940,-270.916196,0.00018299,2]
[388450208,1759174242952,-151.0,0.00018299,2]
[388450210,1759174242963,-151.0,0.00018299,2]
[388450212,1759174242974,-151.0,0.00018299,2]
[388450214,1759174242985,-151.0,0.00018299,2]
[388450216,1759174242995,-151.0,0.00018299,2]
[388450219,1759174243007,-151.0,0.00018299,2]
[388450221,1759174243018,-306.952924,0.00018299,2]
[388450223,1759174243028,-154.282276,0.00018299,2]
[388450225,1759174243040,-270.916196,0.00018299,2]
[388450228,1759174243051,-306.952924,0.00018299,2]
[388450230,1759174243068,-154.282276,0.00018299,2]
[388450233,1759174243079,-33742.34020281,0.00018299,2]
[388450236,1759174243103,-623439.04686351,0.00018299,2]
[388450239,1759174243115,-151.53,0.000183,2]
[388450241,1759174243126,-150.06,0.000183,2]
[388450244,1759174243136,-152.3,0.000183,2]
[388450247,1759174243148,-150.43,0.000183,2]
[388450249,1759174243158,-518156.6331364,0.000183,3]
[388450252,1759174243173,-4540.0,0.000183,3]
[388450604,1759174246691,-175.48,0.00017507,2]
[388450606,1759174246700,-151.0,0.00018298,2]
[388450608,1759174246710,-380.420743,0.00018298,2]
[388450610,1759174246719,-154.282276,0.00018298,2]
[388450612,1759174246728,-270.916196,0.00018298,2]
[388450614,1759174246737,-306.952924,0.00018298,2]
[388450616,1759174246746,-380.420743,0.00018298,2]
[388450618,1759174246755,-151.0,0.00018298,2]
[388450620,1759174246764,-945.726128,0.00018298,2]
[388450622,1759174246774,-154.282276,0.00018299,2]
[388450624,1759174246783,-270.916196,0.00018299,2]
[388450626,1759174246794,-306.952924,0.00018299,2]
[388450628,1759174246803,-93497.91828781,0.000183,3]
[388450630,1759174246813,-151.0,0.000183,2]
[388450632,1759174246823,-249.28126609,0.000183,2]
[388450634,1759174246833,-191.5,0.000183,2]
[388450637,1759174246843,-151.0,0.000183,2]
[388450639,1759174246852,-151.0,0.000183,2]
[388450641,1759174246862,-151.0,0.000183,2]
[388450643,1759174246871,-151.0,0.000183,2]
[388450645,1759174246881,-151.0,0.000183,2]
[388450647,1759174246892,-157.691392,0.000183,2]
[388450649,1759174246902,-151.0,0.000183,2]
[388450651,1759174246913,-160.570024,0.000183,2]
[388450653,1759174246923,-151.0,0.000183,2]
[388450655,1759174246932,-151.0,0.000183,2]
[388450657,1759174246942,-175.720053,0.000183,2]
[388450659,1759174246952,-175.720053,0.000183,2]
[388450661,1759174246962,-175.720053,0.000183,2]
[388450663,1759174246971,-175.720053,0.000183,2]
[388450666,1759174246981,-151.0,0.000183,2]
[388450668,1759174246991,-151.0,0.000183,2]
[388450670,1759174247001,-151.0,0.000183,2]
[388450672,1759174247011,-151.0,0.000183,2]
[388450674,1759174247020,-151.0,0.000183,2]
[388450676,1759174247031,-151.0,0.000183,2]
[388450678,1759174247041,-151.0,0.000183,2]
[388450680,1759174247051,-159.13675,0.000183,2]
[388450682,1759174247062,-159.13675,0.000183,2]
[388450684,1759174247071,-151.0,0.000183,2]
[388450686,1759174247081,-159.13675,0.000183,2]
[388450688,1759174247091,-159.13675,0.000183,2]
[388450690,1759174247101,-151.0,0.000183,2]
[388450692,1759174247111,-151.0,0.000183,2]
[388450694,1759174247120,-151.0,0.000183,2]
[388450696,1759174247130,-152.564885,0.000183,2]
[388450698,1759174247140,-151.0,0.000183,2]
[388450700,1759174247149,-151.0,0.000183,2]
[388450702,1759174247160,-151.0,0.000183,2]
[388450704,1759174247169,-151.0,0.000183,2]
[388450706,1759174247179,-157.133287,0.000183,2]
[388450708,1759174247189,-151.877767,0.000183,2]
[388450710,1759174247199,-151.0,0.000183,2]
[388450712,1759174247213,-151.0,0.000183,2]
[388450715,1759174247222,-151.0,0.000183,2]
[388450717,1759174247232,-151.0,0.000183,2]
[388450719,1759174247242,-259.028209,0.000183,2]
[388450721,1759174247251,-2773.07,0.000183,2]
[388450723,1759174247262,-151.0,0.000183,2]
[388450725,1759174247272,-151.0,0.000183,2]
[388450727,1759174247283,-165.632342,0.000183,2]
[388450729,1759174247294,-151.0,0.000183,2]
[388450731,1759174247303,-151.360819,0.000183,2]
[388450733,1759174247313,-151.0,0.000183,2]
[388450735,1759174247322,-151.0,0.000183,2]
[388450737,1759174247332,-151.0,0.000183,2]
[388450739,1759174247342,-151.0,0.000183,2]
[388450741,1759174247353,-156.164908,0.000183,2]
[388450743,1759174247362,-151.0,0.000183,2]
[388450745,1759174247372,-151.0,0.000183,2]
[388450747,1759174247382,-153.644797,0.000183,2]
[388450749,1759174247391,-200.883336,0.000183,2]
[388450751,1759174247401,-151.0,0.000183,2]
[388450754,1759174247410,-151.0,0.000183,2]
[388450756,1759174247420,-151.0,0.000183,2]
[388450758,1759174247430,-151.0,0.000183,2]
[388450760,1759174247438,-151.0,0.000183,2]
[388450762,1759174247448,-151.0,0.000183,2]
[388450764,1759174247457,-151.0,0.000183,2]
[388450766,1759174247467,-151.0,0.000183,2]
[388450768,1759174247476,-151.0,0.000183,2]
[388450770,1759174247486,-151.0,0.000183,2]
[388450772,1759174247496,-151.0,0.000183,2]
[388450774,1759174247506,-151.0,0.000183,2]
[388450776,1759174247515,-151.0,0.000183,2]
[388450778,1759174247526,-151.0,0.000183,2]
[388450780,1759174247536,-151.0,0.000183,2]
[388450782,1759174247545,-222.71143,0.000183,2]
[388450784,1759174247555,-198.140906,0.000183,2]
[388450786,1759174247564,-151.0,0.000183,2]
[388450788,1759174247574,-151.0,0.000183,2]
[388450790,1759174247584,-75.5882385,0.000183,2]
[388450793,1759174247598,-87.2547685,0.000183,2]
[388450795,1759174247607,-269.642923,0.000183,2]
[388450797,1759174247617,-269.642923,0.000183,2]
[388450799,1759174247626,-79.22953642,0.000183,2]
[388450806,1759174247682,-190.41338658,0.000183,2]
[388450808,1759174247692,-269.642923,0.000183,2]
[388450811,1759174247702,-262.403758,0.000183,2]
[388450813,1759174247712,-151.0,0.000183,2]
[388450815,1759174247721,-262.403758,0.000183,2]
[388450817,1759174247731,-151.0,0.000183,2]
[388450819,1759174247740,-262.403758,0.000183,2]
[388450821,1759174247750,-151.0,0.000183,2]
[388450823,1759174247759,-262.403758,0.000183,2]
[388450825,1759174247767,-914.361732,0.000183,2]
[388450827,1759174247777,-151.0,0.000183,2]
[388450829,1759174247786,-914.361732,0.000183,2]
[388450831,1759174247795,-151.0,0.000183,2]
[388450833,1759174247804,-914.361732,0.000183,2]
[388450835,1759174247814,-914.361732,0.000183,2]
[388450837,1759174247823,-239.378874,0.000183,2]
[388450839,1759174247832,-437.284942,0.000183,2]
[388450841,1759174247841,-437.284942,0.000183,2]
[388450843,1759174247851,-437.284942,0.000183,2]
[388450845,1759174247860,-437.284942,0.000183,2]
[388450847,1759174247869,-151.0,0.000183,2]
[388450849,1759174247878,-151.0,0.000183,2]
[388450851,1759174247887,-151.0,0.000183,2]
[388450853,1759174247896,-151.0,0.000183,2]
[388450856,1759174247906,-151.0,0.000183,2]
[388450858,1759174247915,-151.0,0.000183,2]
[388450860,1759174247924,-151.0,0.000183,2]
[388450862,1759174247935,-151.0,0.000183,2]
[388450864,1759174247944,-151.0,0.000183,2]
[388450866,1759174247953,-151.0,0.000183,2]
[388450868,1759174247962,-151.0,0.000183,2]
[388450870,1759174247971,-151.0,0.000183,2]
[388450872,1759174247982,-151.0,0.000183,2]
[388450874,1759174247991,-151.0,0.000183,2]
[388450876,1759174248001,-151.0,0.000183,2]
[388450878,1759174248011,-151.0,0.000183,2]
[388450880,1759174248020,-151.0,0.000183,2]
[388450882,1759174248030,-151.0,0.000183,2]
[388450884,1759174248040,-151.0,0.000183,2]
[388450887,1759174248050,-151.0,0.000183,2]
[388450889,1759174248059,-151.0,0.000183,2]
[388450891,1759174248070,-151.0,0.000183,2]
[388450893,1759174248080,-151.0,0.000183,2]
[388450895,1759174248093,-1039.02072,0.000183,2]
[388450897,1759174248103,-151.0,0.000183,2]
[388450899,1759174248113,-151.0,0.000183,2]
[388450901,1759174248123,-151.0,0.000183,2]
[388450903,1759174248133,-235.520792,0.000183,2]
[388450905,1759174248142,-178.287725,0.000183,2]
[388450907,1759174248152,-178.287725,0.000183,2]
[388450909,1759174248162,-151.0,0.000183,2]
[388450911,1759174248171,-178.287725,0.000183,2]
[388450913,1759174248181,-178.287725,0.000183,2]
[388450915,1759174248190,-185.628927,0.000183,2]
[388450917,1759174248200,-151.0,0.000183,2]
[388450920,1759174248214,-151.0,0.000183,2]
[388450922,1759174248224,-189.839836,0.000183,2]
[388450924,1759174248235,-151.0,0.000183,2]
[388450926,1759174248244,-151.0,0.000183,2]
[388450928,1759174248256,-151.0,0.000183,2]
[388450930,1759174248265,-151.0,0.000183,2]
[388450932,1759174248275,-151.0,0.000183,2]
[388450934,1759174248285,-151.0,0.000183,2]
[388450936,1759174248296,-186.983298,0.000183,2]
[388450938,1759174248306,-186.983298,0.000183,2]
[388450940,1759174248316,-151.0,0.000183,2]
[388450942,1759174248326,-186.983298,0.000183,2]
[388450944,1759174248335,-186.983298,0.000183,2]
[388450946,1759174248345,-151.0,0.000183,2]
[388450948,1759174248355,-186.983298,0.000183,2]
[388450950,1759174248367,-186.983298,0.000183,2]
[388450952,1759174248377,-151.0,0.000183,2]
[388450954,1759174248388,-186.983298,0.000183,2]
[388450956,1759174248399,-186.983298,0.000183,2]
[388450957,1759174248410,-151.0,0.000183,2]
[388450958,1759174248421,-151.0,0.000183,2]
[388450959,1759174248431,-265.47725,0.000183,2]
[388450960,1759174248441,-151.0,0.000183,2]
[388450961,1759174248450,-151.0,0.000183,2]
[388450962,1759174248461,-151.0,0.000183,2]
[388450963,1759174248470,-151.0,0.000183,2]
[388450964,1759174248479,-151.0,0.000183,2]
[388450965,1759174248489,-163.421808,0.000183,2]
[388450966,1759174248498,-167.980544,0.000183,2]
[388450967,1759174248507,-151.0,0.000183,2]
[388450968,1759174248516,-167.980544,0.000183,2]
[388450969,1759174248526,-151.0,0.000183,2]
[388450970,1759174248535,-167.980544,0.000183,2]
[388450971,1759174248544,-167.980544,0.000183,2]
[388450972,1759174248555,-167.980544,0.000183,2]
[388450973,1759174248567,-167.980544,0.000183,2]
[388450975,1759174248576,-167.980544,0.000183,2]
[388450978,1759174248586,-167.980544,0.000183,2]
[388450980,1759174248596,-151.0,0.000183,2]
[388450982,1759174248606,-151.0,0.000183,2]
[388450984,1759174248615,-151.0,0.000183,2]
[388450986,1759174248625,-221.109461,0.000183,2]
[388450988,1759174248634,-2512.811978,0.000183,2]
[388450990,1759174248643,-2512.811978,0.000183,2]
[388450992,1759174248652,-151.0,0.000183,2]
[388450994,1759174248661,-151.0,0.000183,2]
[388450996,1759174248671,-2512.811978,0.000183,2]
[388450998,1759174248680,-2512.811978,0.000183,2]
[388451000,1759174248689,-151.0,0.000183,2]
[388451002,1759174248698,-151.0,0.000183,2]
[388451004,1759174248707,-2512.811978,0.000183,2]
[388451006,1759174248718,-2512.811978,0.000183,2]
[388451008,1759174248727,-151.0,0.000183,2]
[388451010,1759174248736,-151.0,0.000183,2]
[388451012,1759174248746,-151.0,0.000183,2]
[388451014,1759174248755,-2512.811978,0.000183,2]
[388451016,1759174248764,-197.909035,0.000183,2]
[388451018,1759174248773,-2512.811978,0.000183,2]
[388451020,1759174248782,-151.0,0.000183,2]
[388451022,1759174248791,-287.238648,0.000183,2]
[388451024,1759174248800,-151.0,0.000183,2]
[388451026,1759174248810,-151.0,0.000183,2]
[388451028,1759174248821,-151.0,0.000183,2]
[388451030,1759174248832,-151.0,0.000183,2]
[388451032,1759174248843,-378.272316,0.000183,2]
[388451034,1759174248854,-378.272316,0.000183,2]
[388451036,1759174248864,-378.272316,0.000183,2]
[388451038,1759174248874,-378.272316,0.000183,2]
[388451040,1759174248884,-151.0,0.000183,2]
[388451042,1759174248894,-151.0,0.000183,2]
[388451044,1759174248904,-151.0,0.000183,2]
[388451046,1759174248914,-151.0,0.000183,2]
[388451048,1759174248924,-152.829606,0.000183,2]
[388451050,1759174248933,-631.403901,0.000183,2]
[388451052,1759174248943,-152.829606,0.000183,2]
[388451054,1759174248952,-152.829606,0.000183,2]
[388451056,1759174248962,-262.861329,0.000183,2]
[388451058,1759174248971,-152.829606,0.000183,2]
[388451060,1759174248980,-262.861329,0.000183,2]
[388451062,1759174248990,-151.0,0.000183,2]
[388451064,1759174249000,-262.861329,0.000183,2]
[388451066,1759174249009,-151.0,0.000183,2]
[388451069,1759174249019,-151.0,0.000183,2]
[388451071,1759174249028,-262.861329,0.000183,2]
[388451073,1759174249038,-151.0,0.000183,2]
[388451075,1759174249049,-151.0,0.000183,2]
[388451077,1759174249059,-151.0,0.000183,2]
[388451079,1759174249068,-151.0,0.000183,2]
[388451081,1759174249077,-151.0,0.000183,2]
[388451083,1759174249088,-151.0,0.000183,2]
[388451085,1759174249097,-151.0,0.000183,2]
[388451087,1759174249106,-631.403901,0.000183,2]
[388451089,1759174249118,-631.403901,0.000183,2]
[388451091,1759174249127,-631.403901,0.000183,2]
[388451092,1759174249136,-150.0,0.000183,2]
[388451095,1759174249147,-6008.38038064,0.000183,2]
[388451096,1759174249157,-7154.158261,0.000183,2]
[388451098,1759174249167,-7154.158261,0.000183,2]
[388451101,1759174249178,-2694.74802347,0.000183,2]
[388451104,1759174249204,-4459.41023753,0.000183,2]
[388451106,1759174249225,-7154.158261,0.000183,2]
[388451108,1759174249247,-151.0,0.000183,2]
[388451110,1759174249269,-151.0,0.000183,2]
[388451112,1759174249288,-151.0,0.000183,2]
[388451114,1759174249299,-151.0,0.000183,2]
[388451116,1759174249309,-270.916196,0.000183,2]
[388451118,1759174249319,-151.0,0.000183,2]
[388451120,1759174249329,-151.0,0.000183,2]
[388451122,1759174249339,-151.0,0.000183,2]
[388451124,1759174249349,-151.0,0.000183,2]
[388451126,1759174249358,-151.0,0.000183,2]
[388451128,1759174249367,-151.0,0.000183,2]
[388451130,1759174249376,-154.282276,0.000183,2]
[388451132,1759174249385,-151.0,0.000183,2]
[388451134,1759174249395,-306.952924,0.000183,2]
[388451137,1759174249405,-154.282276,0.000183,2]
[388451139,1759174249414,-270.916196,0.000183,2]
[388451141,1759174249425,-306.952924,0.000183,2]
[388451143,1759174249435,-154.282276,0.000183,2]
[388451145,1759174249444,-151.0,0.000183,2]
[388451147,1759174249453,-380.420743,0.000183,2]
[388451148,1759174249463,-151.0,0.000183,2]
[388451150,1759174249473,-380.420743,0.000183,2]
[388451151,1759174249483,-154.282276,0.000183,2]
[388451153,1759174249492,-270.916196,0.000183,2]
[388451155,1759174249502,-380.420743,0.000183,2]
[388451157,1759174249511,-151.0,0.000183,2]
[388451159,1759174249520,-306.952924,0.000183,2]
[388451161,1759174249529,-106.9429202,0.000183,2]
[388451165,1759174249555,-270.916196,0.00018298,2]
[388451167,1759174249564,-273.4778228,0.000183,2]
[388451169,1759174249573,-151.0,0.000183,2]
[388451171,1759174249582,-350.66993645,0.000183,2]
[388451647,1759174274376,500.0,0.00016601,2]
[388451648,1759174274858,500.0,0.00016601,2]
[388451650,1759174290976,500.0,0.00016601,2]
[388451651,1759174291031,500.0,0.00016601,2]
[388451652,1759174291083,256.632068,0.00016601,2]
[388451658,1759174450355,500.0,0.00030136,120]
[388451675,1759174830851,150.0,0.00027397,120]
[388451676,1759174870660,261.32,8.61e-05,2]
[388451677,1759174870705,261.32,9.063e-05,2]
[388451678,1759174870829,261.32,9.516e-05,2]
[388451679,1759174870873,261.32,9.969e-05,2]
[388451680,1759174871005,261.32,0.00010422,2]
[388451681,1759174871078,261.32,0.00010876,2]
[388451682,1759174871128,261.32,0.00011329,2]
[388451683,1759174871175,261.32,0.00011782,2]
[388451684,1759174871252,261.32,0.00012235,2]
[388451685,1759174871413,261.32,0.00012688,2]
[388451686,1759174871636,261.32,0.00013141,2]
[388451687,1759174871855,261.32,0.00013594,2]
[388451688,1759174872078,261.32,0.00014048,2]
[388451689,1759174872352,261.32,0.00014501,2]
[388451690,1759174872596,261.32,0.00014954,2]
[388451691,1759174872797,261.32,0.00015407,2]
[388451692,1759174873019,261.32,0.0001586,2]
[388451693,1759174873246,261.32,0.00016313,2]
[388451959,1759174981357,6129.174404,0.00016544,2]
[388452065,1759175091278,-158.51,0.00016697,2]
[388452207,1759175164556,5882.58516422,0.00030137,120]
[388452524,1759175401692,415.0,0.000164,2]
[388452525,1759175429340,172.11,0.00025563,120]
[388452536,1759175431747,-261.32,0.00016767,2]
[388452537,1759175431761,-500.0,0.00016884,2]
[388452538,1759175431772,-13.6982076,0.00016884,2]
[388452539,1759175431788,-334.20433987,0.00016884,2]
[388452540,1759175431800,-205.04979564,0.00016884,2]
[388452541,1759175431812,-500.0,0.00016885,2]
[388452542,1759175431824,-1200.0,0.00016885,2]
[388452543,1759175431837,-719.14586449,0.00016886,2]
[388452544,1759175431860,-2000.0,0.00016886,2]
[388452545,1759175431873,-458.19132845,0.00016886,2]
[388452546,1759175432012,-6838.20932888,0.00016886,2]
[388452547,1759175432028,-1242.85873117,0.00016886,2]
[388452548,1759175432070,-49881.87188256,0.00016886,2]
[388452549,1759175432081,-150.0,0.00016989,2]
[388452550,1759175432091,-150.0,0.00016989,2]
[388452551,1759175432102,-150.0,0.00016989,2]
[388452552,1759175432112,-150.0,0.00016989,2]
[388452553,1759175432123,-150.0,0.00016989,2]
[388452556,1759175432133,-239.77990374,0.00016989,2]
[388452557,1759175432144,-150.0,0.00016989,2]
[388452558,1759175432154,-225.55776547,0.00016989,2]
[388452559,1759175432172,-156.01244219,0.00016989,2]
[388452561,1759175432183,-150.0,0.00016989,2]
[388452563,1759175432194,-150.0,0.00016989,2]
[388452565,1759175432205,-150.0,0.00016989,2]
[388452569,1759175432216,-150.0,0.00016989,2]
[388452572,1759175432227,-172.11,0.00017042,2]
[388452576,1759175432238,-165.76,0.00017056,2]
[388452580,1759175432250,-247.62,0.00017071,2]
[388452585,1759175432261,-250.0,0.00017108,2]
[388452589,1759175432272,-183.2,0.00017171,2]
[388452592,1759175432283,-261.32,0.0001722,2]
[388452595,1759175432294,-945.92,0.00017261,2]
[388452599,1759175432306,-322.6107,0.00017321,2]
[388452602,1759175432319,-623.58710448,0.00017321,2]
[388452605,1759175432331,-1242.85873117,0.00017321,2]
[388452607,1759175432342,-599.60298507,0.00017321,2]
[388452609,1759175432354,-500.0,0.00017321,2]
[388452611,1759175432367,-500.0,0.00017321,2]
[388452613,1759175432379,-500.0,0.00017321,2]
[388452616,1759175432392,-500.0,0.00017321,2]
[388452618,1759175432404,-162.56740587,0.00017321,2]
[388452619,1759175432415,-239.84119403,0.00017321,2]
[388452620,1759175432427,-1000.0,0.00017322,2]
[388452621,1759175432439,-551.72,0.0001733,2]
[388452622,1759175432451,-156.08,0.00017346,2]
[388452623,1759175432462,-165.4,0.00017419,2]
[388452624,1759175432474,-150.0,0.00017461,2]
[388452625,1759175432486,-150.0,0.00017461,2]
[388452626,1759175432497,-407.0,0.0001758,2]
[388452627,1759175432509,-150.0,0.00017618,2]
[388452628,1759175432522,-845.29,0.00017728,2]
[388452629,1759175432534,-999.99,0.00017728,2]
[388452630,1759175432544,-150.99,0.00017728,2]
[388452631,1759175432555,-1762.23,0.00017728,2]
[388452632,1759175432566,-5382.25,0.00017728,2]
[388452633,1759175432582,-1178.54,0.00017728,2]
[388452634,1759175432593,-168.0,0.0001774,2]
[388452635,1759175432606,-289.30089448,0.00017799,2]
[388452636,1759175432617,-2000.0,0.000178,2]
[388452637,1759175432628,-1302.704,0.00017801,2]
[388452638,1759175432639,-175.48,0.00017878,2]
[388452639,1759175432651,-247.62,0.00017924,2]
[388452640,1759175432663,-150.0,0.00017933,2]
[388452641,1759175432674,-150.0,0.00017933,2]
[388452642,1759175432686,-150.0,0.00017933,2]
[388452643,1759175432697,-150.0,0.00017933,2]
[388452644,1759175432713,-150.0,0.00017933,2]
[388452645,1759175432725,-150.0,0.00017933,2]
[388452646,1759175432736,-150.0,0.00017933,2]
[388452647,1759175432748,-6888.00235339,0.00017934,2]
[388452648,1759175432760,-1931.32431836,0.00018,2]
[388452649,1759175432771,-1000.0,0.00018005,2]
[388452650,1759175432782,-862.32097958,0.00018018,2]
[388452651,1759175432793,-354.0,0.00018026,2]
[388452652,1759175432804,-354.0,0.00018033,2]
[388452653,1759175432815,-168.0,0.00018035,2]
[388452654,1759175432827,-1000.0,0.00018044,2]
[388452655,1759175432838,-150.0,0.00018058,2]
[388452656,1759175432849,-1425.0,0.00018066,2]
[388452657,1759175432860,-1000.0,0.00018078,2]
[388452658,1759175432871,-1425.0,0.00018078,2]
[388452659,1759175432882,-354.0,0.00018089,2]
[388452660,1759175432893,-1425.0,0.00018137,2]
[388452661,1759175432905,-200.0,0.00018154,2]
[388452662,1759175432916,-354.0,0.00018159,2]
[388452663,1759175432928,-1425.0,0.00018178,2]
[388452664,1759175432939,-152.85,0.00018181,2]
[388452665,1759175432950,-152.66,0.00018181,2]
[388452666,1759175432960,-150.29,0.00018181,2]
[388452667,1759175432975,-152.89,0.00018181,2]
[388452668,1759175432986,-4934.94057608,0.00018204,2]
[388452669,1759175432997,-354.0,0.00018209,2]
[388452670,1759175433010,-474.44399432,0.00018229,2]
[388452671,1759175433022,-150.0,0.00018247,2]
[388452672,1759175433033,-4934.94057602,0.00018268,2]
[388452673,1759175433045,-150.43,0.00018273,2]
[388452674,1759175433056,-152.34,0.00018273,2]
[388452675,1759175433067,-150.57,0.00018273,2]
[388452676,1759175433078,-1425.0,0.00018277,2]
[388452677,1759175433089,-151.38,0.000183,2]
[388452678,1759175433101,-152.26,0.000183,2]
[388452679,1759175433113,-150.79,0.000183,2]
[388452680,1759175433125,-151.37,0.000183,2]
[388452681,1759175433136,-150.0,0.000183,2]
[388452682,1759175433148,-150.0,0.000183,2]
[388452683,1759175433160,-150.0,0.000183,2]
[388452684,1759175433170,-500.0,0.000183,2]
[388452685,1759175433181,-205.46378157,0.000183,2]
[388452686,1759175433193,-268.75189934,0.000183,2]
[388452687,1759175433203,-150.0,0.000183,2]
[388452688,1759175433216,-23660.02815865,0.000183,2]
[388452689,1759175435721,-25234.05932895,0.000183,2]
[388452690,1759175435731,-865.8506,0.000183,2]
[388452691,1759175435751,-168.0,0.00018304,2]
[388452692,1759175435761,-4934.94057602,0.00018332,2]
[388452693,1759175435771,-155.0,0.00018355,2]
[388452694,1759175435783,-6547.71180768,0.00018356,2]
[388452699,1759175437720,-203.59972199,0.00017727,2]
[388452700,1759175437740,-184.87252291,0.00017727,2]
[388452701,1759175437761,-365.33503885,0.00017727,2]
[388452702,1759175437835,-134.66496115,0.00017727,2]
[388452703,1759175437846,-229.00426234,0.00017727,2]
[388452704,1759175437857,-431.38243824,0.00017727,2]
[388452705,1759175437867,-894.10330167,0.00018356,2]
[388452706,1759175437879,-5509.61978776,0.00018356,2]
[388452707,1759175437891,-1018.70752894,0.00018356,2]
[388452708,1759175437915,-5022.24886179,0.00018356,2]
[388452709,1759175437931,-712.08072498,0.00018356,2]
[388452710,1759175437943,-811.36833236,0.00018356,2]
[388452712,1759175437997,-5562.86915486,0.00018356,2]